bitfinex/quotes_ETHUSD_20251116
["timestamp","ask_amount","ask_price","bid_price","bid_amount"]
[1763330800187,0.002,3071.9,3071.4,0.001]
[1763330800554,0.002,3071.9,3071.4,0.4625]
[1763330800966,0.002,3071.9,3071.4,0.001]
[1763330801171,0.002,3071.9,3071.4,0.4625]
[1763330801809,0.002,3071.9,3071.5,0.405504]
[1763330802175,0.002,3071.9,3071.6,0.4615]
[1763330802390,0.002,3071.9,3071.8,0.4955]
[1763330802986,0.002,3071.9,3071.4,0.001]
[1763330803212,0.4902,3071.8,3071.4,0.001]
[1763330804918,1.471,3071.7,3070.5,0.1528]
[1763330805221,1.9612,3071.7,3070.5,0.1528]
[1763330806001,0.183,3071.9,3070.5,0.1528]
[1763330806215,0.002,3071.9,3071.1,0.4615]
[1763330806787,0.4902,3071.8,3070.6,0.405504]
[1763330806978,0.4902,3071.8,3070.5,0.1528]
[1763330808279,0.4902,3071.8,3070.6,0.4615]
[1763330809400,0.4902,3071.8,3070.5,0.1528]
[1763330810578,0.4902,3071.8,3070.5,1.76654384]
[1763330811122,0.4902,3071.8,3070.5,2.22804384]
[1763330811615,0.002,3071.9,3070.6,1.69670847]
[1763330811782,0.4914,3071.8,3070.6,1.69670847]
[1763330812183,0.002,3071.9,3070.8,0.4778]
[1763330812502,0.002,3071.9,3070.7,1.60620583]
[1763330812681,0.002,3071.9,3071.0,0.4788]
[1763330813209,0.002,3071.9,3071.0,0.001]
[1763330813410,0.002,3071.9,3071.0,0.4788]
[1763330813616,0.002,3071.9,3071.0,0.001]
[1763330815219,0.002,3071.9,3071.0,0.4788]
[1763330815514,1.471,3071.8,3071.0,0.4788]
[1763330815731,1.471,3071.8,3071.0,0.001]
[1763330817099,1.471,3071.8,3071.0,0.4788]
[1763330817395,1.9624,3071.8,3071.0,0.001]
[1763330817613,1.471,3071.8,3071.0,0.001]
[1763330818503,1.471,3071.8,3071.0,0.4788]
[1763330819049,1.471,3071.7,3071.0,0.4788]
[1763330820525,1.471,3071.6,3071.0,0.4788]
[1763330821044,0.002,3071.9,3071.0,0.4788]
[1763330821417,1.471,3071.8,3071.0,0.001]
[1763330822227,0.4914,3071.7,3070.7,1.60620583]
[1763330823147,0.6751,3070.8,3070.7,1.60620583]
[1763330823443,0.6751,3070.8,3070.6,0.001]
[1763330823650,0.9812,3070.7,3070.6,0.001]
[1763330823950,0.4898,3070.7,3070.6,0.001]
[1763330825844,0.405504,3071.2,3070.6,0.001]
[1763330827446,0.405504,3071.6,3070.6,0.001]
[1763330827835,1.472,3071.5,3070.7,0.4778]
[1763330828927,0.002,3071.9,3070.7,0.4778]
[1763330829238,1.472,3071.8,3070.7,0.4778]
[1763330829440,1.9634,3071.8,3070.6,0.001]
[1763330829650,0.4914,3071.7,3070.6,0.001]
[1763330830643,0.4914,3071.7,3070.6,0.4788]
[1763330831651,0.4914,3071.7,3070.6,0.001]
[1763330832283,0.4914,3071.7,3070.2,0.1529]
[1763330833547,0.405504,3071.6,3070.2,0.1529]
[1763330833745,0.405504,3071.6,3069.9,1.1337408]
[1763330833983,0.6751,3070.0,3069.1,0.1847]
[1763330834157,0.405504,3071.4,3069.4,0.4788]
[1763330834363,0.1853,3070.7,3069.9,1.6017408]
[1763330835393,0.4914,3070.6,3069.8,2.93068242]
[1763330836981,0.4914,3070.6,3069.9,0.001]
[1763330839099,0.4914,3070.6,3069.9,1.291]
[1763330839458,1.472,3070.5,3069.9,1.291]
[1763330839958,0.4656,3070.4,3069.9,1.291]
[1763330841597,0.4656,3070.4,3069.9,2.98572262]
[1763330842310,0.4656,3070.4,3069.9,0.8982445]
[1763330843701,0.4656,3070.4,3069.9,0.5082445]
[1763330844012,1.472,3070.5,3069.9,0.5082445]
[1763330844013,0.002,3071.2,3070.3,0.6123]
[1763330844222,1.474,3071.2,3070.4,0.9676445]
[1763330844379,1.474,3071.2,3070.4,0.5082445]
[1763330844380,0.4906,3071.1,3070.4,0.5082445]
[1763330845110,1.474,3071.2,3070.4,0.5082445]
[1763330845265,1.474,3071.2,3070.4,1.0032445]
[1763330846476,1.9646,3071.2,3070.4,0.5082445]
[1763330846677,1.474,3071.2,3070.5,0.495]
[1763330847285,1.474,3071.2,3070.4,0.5082445]
[1763330848086,1.474,3071.2,3070.4,1.0032445]
[1763330849005,1.474,3071.2,3070.5,0.495]
[1763330849380,1.474,3071.2,3070.6,0.5082445]
[1763330850107,0.4906,3071.1,3070.6,0.5082445]
[1763330850694,0.6719,3070.7,3070.6,0.5082445]
[1763330851375,1.1625,3070.7,3070.6,0.5082445]
[1763330852214,1.1625,3070.7,3070.6,0.11556181]
[1763330852879,1.1625,3070.7,3069.8,1.64068242]
[1763330853079,0.1815,3070.9,3070.6,0.51]
[1763330853503,1.474,3071.2,3070.6,0.51]
[1763330853875,0.002,3071.2,3071.1,0.4594]
[1763330854196,1.474,3071.2,3071.1,0.0592]
[1763330854395,1.474,3071.2,3071.1,0.5692]
[1763330855105,1.474,3071.2,3071.1,0.51]
[1763330858011,2.860504,3071.2,3071.1,0.15457096]
[1763330858322,1.5392448,3071.1,3070.1,1.68310812]
[1763330858503,0.896104,3071.1,3070.0,1.68481705]
[1763330859212,0.4906,3071.0,3070.0,1.68481705]
[1763330859717,0.405504,3070.8,3070.0,1.68481705]
[1763330861624,0.896104,3070.8,3070.0,1.68481705]
[1763330862234,0.896104,3070.8,3069.9,0.001]
[1763330862431,0.405504,3070.6,3070.1,0.18]
[1763330862927,0.4906,3070.5,3070.1,0.18]
[1763330863331,0.4904,3070.2,3070.1,0.18]
[1763330863624,0.4906,3070.5,3070.1,0.18]
[1763330866408,0.4906,3070.5,3069.9,0.001]
[1763330866409,0.4904,3070.2,3069.9,0.001]
[1763330866721,0.4904,3070.2,3070.0,0.4904]
[1763330866722,0.405504,3070.2,3070.0,0.4904]
[1763330866920,0.4906,3070.1,3070.0,0.4904]
[1763330867131,0.981,3070.1,3070.0,0.4904]
[1763330867595,0.4904,3070.1,3070.0,0.4904]
[1763330868099,1.28824416,3070.1,3069.9,0.001]
[1763330868301,0.4904,3070.0,3069.9,0.001]
[1763330868934,0.981,3070.0,3069.9,0.001]
[1763330869510,0.981,3070.0,3069.9,0.0002]
[1763330869834,1.386504,3070.0,3069.9,0.0002]
[1763330871940,0.895904,3070.0,3069.9,0.0002]
[1763330872435,0.405504,3069.9,3069.6,1.65534617]
[1763330872637,1.472,3069.8,3069.6,2.14354617]
[1763330872828,1.472,3069.8,3069.6,1.65534617]
[1763330873207,0.4945,3069.7,3069.6,1.65534617]
[1763330873428,0.4945,3069.7,3069.5,1.65084498]
[1763330873429,0.964,3069.7,3069.5,1.65084498]
[1763330873615,0.4945,3069.6,3069.5,1.65084498]
[1763330874632,1.472,3069.8,3069.5,1.65084498]
[1763330875007,1.9415,3069.8,3069.5,1.65084498]
[1763330875706,0.4945,3069.6,3069.5,1.65084498]
[1763330875909,0.4945,3069.6,3069.5,1.63936752]
[1763330876127,0.964,3069.6,3069.5,1.63936752]
[1763330876734,1.369504,3069.6,3069.5,1.63936752]
[1763330878334,0.900004,3069.6,3069.5,1.63936752]
[1763330878736,1.369504,3069.6,3069.5,1.63936752]
[1763330880119,1.472,3069.8,3069.2,0.001]
[1763330880120,0.405504,3069.5,3069.2,0.001]
[1763330880324,0.900004,3069.3,3069.2,0.001]
[1763330880720,0.900004,3069.3,3069.1,0.001]
[1763330880721,0.405504,3069.2,3069.1,0.001]
[1763330880976,1.369504,3069.2,3069.1,0.001]
[1763330881660,0.31553939,3070.4,3069.1,0.646]
[1763330881859,1.472,3069.2,3069.1,0.001]
[1763330882235,1.472,3069.2,3068.7,2.16371148]
[1763330882437,1.472,3069.2,3068.6,1.65704079]
[1763330882974,0.1735,3068.8,3068.5,0.001]
[1763330883545,0.643,3068.8,3068.5,0.001]
[1763330883839,0.1735,3068.8,3068.5,0.001]
[1763330884040,0.1735,3068.8,3068.2,1.67320871]
[1763330884558,0.643,3068.8,3068.1,1.67041379]
[1763330884960,0.1735,3068.8,3068.1,1.67041379]
[1763330885160,0.405504,3068.7,3068.1,1.67041379]
[1763330886038,1.473,3068.6,3068.1,1.67041379]
[1763330886432,1.473,3068.6,3068.1,1.85591379]
[1763330886642,0.405504,3068.5,3068.1,1.67041379]
[1763330886860,0.72863064,3068.5,3068.1,1.67041379]
[1763330887059,0.405504,3068.5,3068.1,1.67041379]
[1763330888331,0.405504,3068.7,3068.4,2.6745217]
[1763330888623,0.1735,3068.8,3068.4,2.6745217]
[1763330888624,0.405504,3068.5,3068.4,2.6745217]
[1763330889052,0.405504,3068.5,3068.4,2.36927533]
[1763330889232,1.473,3068.6,3068.4,2.36927533]
[1763330890035,1.473,3068.6,3068.2,1.64694611]
[1763330890464,1.473,3068.6,3068.1,1.6830428]
[1763330890637,0.381,3069.0,3068.5,3.00396175]
[1763330890843,0.2075,3068.9,3068.0,0.001]
[1763330891582,0.1735,3069.0,3068.1,0.1855]
[1763330892284,0.476604,3068.9,3068.0,0.28162046]
[1763330892446,0.476604,3068.9,3067.7,1.69936754]
[1763330894168,0.0711,3068.9,3067.7,1.69936754]
[1763330894373,0.1735,3069.2,3067.9,1.67962948]
[1763330894576,0.052,3070.3,3067.9,1.67962948]
[1763330894776,0.4715,3069.9,3068.1,1.6830428]
[1763330895148,0.4715,3069.9,3067.7,6.4925969]
[1763330895149,0.4715,3069.9,3068.2,2.32064611]
[1763330895352,1.878504,3069.8,3068.3,0.4882]
[1763330895555,1.473,3069.8,3068.3,0.4882]
[1763330896086,0.405504,3069.7,3068.3,2.14584533]
[1763330896262,0.405504,3069.7,3068.3,0.4882]
[1763330896464,1.473,3069.8,3068.4,0.4805]
[1763330898086,1.473,3069.8,3068.2,6.6770969]
[1763330898087,0.894704,3069.7,3068.2,1.64694611]
[1763330898585,0.405504,3069.5,3068.2,1.64694611]
[1763330898954,0.405504,3069.3,3067.8,1.61242322]
[1763330899350,0.1223,3069.0,3067.7,1.69936754]
[1763330899569,1e-08,3068.3,3067.7,0.001]
[1763330899986,1.2560408,3069.0,3067.6,0.001]
[1763330900192,1.2560408,3069.0,3067.7,1.69836754]
[1763330900388,0.1223,3069.0,3067.7,1.69836754]
[1763330900684,0.1223,3069.0,3067.6,0.001]
[1763330901194,1.1337408,3068.9,3067.6,0.001]
[1763330901493,0.405504,3068.8,3067.7,1.69836754]
[1763330901680,1.473,3068.7,3067.6,0.001]
[1763330901864,1.473,3068.7,3067.7,1.69836754]
[1763330902066,2.6067408,3068.7,3067.7,1.69836754]
[1763330902690,9.1250408,3068.7,3067.7,1.69836754]
[1763330903089,0.405504,3068.6,3067.7,1.69836754]
[1763330903291,0.405504,3068.4,3067.7,1.69836754]
[1763330903594,7.6253377,3068.3,3067.6,0.001]
[1763330903777,1.473,3068.2,3067.6,0.001]
[1763330903979,1.1337408,3068.1,3067.6,0.0002]
[1763330904178,7.6520408,3068.1,3067.6,0.0002]
[1763330904958,8.10871325,3068.1,3067.6,0.0002]
[1763330905158,0.85929633,3068.0,3067.4,0.001]
[1763330905358,1.1337408,3067.9,3067.4,0.001]
[1763330905558,0.405504,3067.7,3067.4,1.65679597]
[1763330905799,0.405504,3067.5,3067.4,1.65679597]
[1763330905974,8.0575448,3067.5,3067.4,1.65679597]
[1763330907627,7.6520408,3067.5,3067.4,1.65679597]
[1763330907825,9.1250408,3067.5,3067.4,1.65679597]
[1763330908121,1.1337408,3067.4,3067.3,0.001]
[1763330908325,1.5392448,3067.4,3067.3,0.001]
[1763330908517,8.0575448,3067.4,3067.3,0.001]
[1763330909028,8.0575448,3067.4,3067.3,0.0002]
[1763330909730,7.9913,3067.4,3067.3,0.9396]
[1763330909904,9.1250408,3067.4,3067.3,0.9396]
[1763330910108,9.1250408,3067.4,3067.3,0.48429187]
[1763330910309,7.9913,3067.4,3067.3,0.48429187]
[1763330910898,7.9913,3067.4,3067.3,0.03299187]
[1763330911531,7.9913,3067.4,3067.2,1.62981883]
[1763330911532,0.405504,3067.3,3067.1,1.66818872]
[1763330911733,7.6520408,3067.4,3067.1,0.6498]
[1763330911910,2.6077408,3067.3,3067.1,0.6498]
[1763330912111,2.6077408,3067.3,3067.1,0.1985]
[1763330912307,2.6077408,3067.3,3066.7,0.25954227]
[1763330912524,2.6077408,3067.3,3066.4,0.1985]
[1763330912927,2.6077408,3067.3,3066.5,1.66112198]
[1763330913242,2.6077408,3067.3,3067.2,0.6866]
[1763330913422,1.474,3067.3,3067.2,0.6866]
[1763330913924,2.6077408,3067.3,3067.2,0.6866]
[1763330914322,2.6077408,3067.3,3067.2,1.1379]
[1763330914927,2.6077408,3067.3,3066.8,1.68379682]
[1763330915304,2.6077408,3067.3,3067.2,0.6866]
[1763330915702,1.474,3067.3,3067.2,1.1379]
[1763330917413,1.474,3067.3,3067.2,0.6866]
[1763330917847,1.474,3067.3,3067.2,1.1379]
[1763330918624,1.474,3067.3,3067.2,0.4881]
[1763330918846,1.474,3067.3,3067.2,0.9394]
[1763330919229,1.474,3067.3,3067.1,1.86668872]
[1763330919230,2.6077408,3067.3,3067.1,1.86668872]
[1763330920331,2.6077408,3067.3,3066.9,1.67601336]
[1763330920534,2.6077408,3067.3,3066.5,1.66112198]
[1763330920942,2.6077408,3067.3,3066.6,0.4513]
[1763330921112,2.6077408,3067.3,3066.7,1.61249925]
[1763330922263,2.6077408,3067.3,3066.6,0.4513]
[1763330922462,2.6077408,3067.3,3066.1,0.6498]
[1763330922463,0.4997,3067.2,3066.1,0.6498]
[1763330922651,2.6077408,3067.3,3066.3,1.69174368]
[1763330922830,9.1260408,3067.3,3066.2,0.4513]
[1763330923031,9.6257408,3067.3,3066.2,0.4513]
[1763330923430,0.905204,3067.2,3065.9,1.6213037]
[1763330923636,0.405504,3067.0,3065.9,1.6213037]
[1763330923980,1.1337408,3066.9,3065.9,1.6213037]
[1763330924272,1.1337408,3066.9,3064.3,4.5797408]
[1763330924273,0.405504,3066.8,3065.7,1.68908859]
[1763330924576,1.5392448,3066.7,3066.6,0.001]
[1763330924736,8.0575448,3066.7,3065.7,1.68908859]
[1763330925047,8.0575448,3066.7,3065.6,0.1985]
[1763330925048,8.5572448,3066.7,3066.4,1.61090884]
[1763330925255,0.11034213,3066.5,3066.3,0.001]
[1763330925473,1.1370408,3066.4,3064.9,1.63533291]
[1763330925677,7.6520408,3066.4,3066.1,1.6133507]
[1763330926260,7.6520408,3066.4,3064.1,6.4915969]
[1763330926261,7.6520408,3066.4,3064.2,1.81919526]
[1763330926539,1.474,3066.3,3064.3,0.4513]
[1763330926739,1.1337408,3066.2,3064.4,1.68141456]
[1763330926940,7.6520408,3066.2,3064.3,0.4513]
[1763330927165,0.405504,3066.1,3064.3,0.4513]
[1763330927370,0.405504,3065.9,3064.3,0.4513]
[1763330927536,0.405504,3065.7,3064.3,0.4513]
[1763330927738,1.1337408,3065.6,3064.3,0.4513]
[1763330927931,7.6520408,3065.6,3064.3,0.4513]
[1763330928157,0.405504,3065.5,3064.3,0.4513]
[1763330928566,7.6520408,3065.6,3064.3,0.4513]
[1763330928768,0.405504,3065.5,3064.4,1.68141456]
[1763330928971,1.879504,3065.5,3064.4,1.68141456]
[1763330929179,1.1337408,3065.4,3064.4,2.13271456]
[1763330929469,1.1337408,3065.4,3064.6,1.69800063]
[1763330929672,1.474,3065.3,3064.8,1.68640321]
[1763330929975,1.474,3065.3,3064.3,2.14987776]
[1763330930172,1.474,3065.3,3064.2,0.1985]
[1763330930173,1.474,3065.3,3064.5,1.6807008]
[1763330930544,1.474,3065.3,3064.5,2.1320008]
[1763330931279,1.474,3065.3,3064.3,1.69857776]
[1763330931482,1.474,3065.3,3064.3,2.16777776]
[1763330931682,1.474,3065.3,3064.5,1.6807008]
[1763330931885,1.1337408,3065.4,3064.5,1.6807008]
[1763330932187,1.474,3065.3,3064.5,1.6807008]
[1763330932405,1.474,3065.3,3064.7,1.60507268]
[1763330932690,1.474,3065.3,3064.8,1.60565201]
[1763330932854,1.474,3065.3,3064.9,1.60429158]
[1763330933185,1.474,3065.3,3064.5,1.63962768]
[1763330933573,1.474,3065.3,3064.7,1.62508569]
[1763330933973,1.474,3065.3,3064.2,6.6900969]
[1763330933974,6.5183,3065.5,3065.2,0.6462]
[1763330934179,1.474,3065.4,3065.2,2.32890646]
[1763330934487,2.6077408,3065.4,3065.2,0.6462]
[1763330934673,1.474,3065.4,3065.2,0.6462]
[1763330934873,1.474,3065.4,3065.2,2.32890646]
[1763330935051,2.6077408,3065.4,3065.2,2.32890646]
[1763330935481,1.474,3065.4,3065.2,2.32890646]
[1763330935802,1.474,3065.4,3065.2,2.79810646]
[1763330935956,6.5183,3065.5,3065.3,0.4548]
[1763330936152,1.475,3065.4,3065.3,2.08728883]
[1763330936359,1.475,3065.4,3065.3,2.10168883]
[1763330936581,2.6087408,3065.4,3064.5,1.63962768]
[1763330936982,1.475,3065.3,3064.4,0.4692]
[1763330937188,6.5183,3065.5,3065.3,0.60905772]
[1763330937502,1.475,3065.4,3065.3,2.24154655]
[1763330938597,3.90834526,3065.4,3064.5,1.63962768]
[1763330938898,3.90834526,3065.4,3064.4,2.1516905]
[1763330939407,3.90834526,3065.4,3064.3,1.63909151]
[1763330940494,3.90834526,3065.4,3064.4,0.4692]
[1763330940700,3.90834526,3065.4,3061.2,0.8553905]
[1763330940701,0.5533,3063.9,3061.2,0.8553905]
[1763330940865,1.1337408,3063.7,3062.4,0.01824569]
[1763330941066,0.405504,3062.4,3061.3,0.22867231]
[1763330941303,0.405504,3062.2,3061.3,0.22867231]
[1763330941475,1.1337408,3062.1,3061.3,0.22867231]
[1763330941817,0.23466855,3062.0,3061.3,0.22867231]
[1763330941962,4.83451874,3062.0,3061.3,0.22867231]
[1763330942161,0.69150493,3061.9,3061.4,1.66548621]
[1763330942408,0.69150493,3061.9,3061.4,2.13468621]
[1763330942409,3.90834526,3061.9,3061.4,2.13468621]
[1763330942566,3.90834526,3061.9,3061.6,1.65178132]
[1763330942769,3.90834526,3061.9,3061.3,0.22867231]
[1763330942770,3.67938606,3061.9,3061.3,0.22867231]
[1763330942986,1.82441832,3061.8,3061.3,0.69787231]
[1763330943186,1.82441832,3061.8,3061.3,0.22867231]
[1763330943187,1.1337408,3061.8,3061.3,0.22867231]
[1763330943457,0.405504,3061.7,3061.3,0.22867231]
[1763330943687,3.90750603,3061.7,3061.3,0.22867231]
[1763330943900,3.21777082,3061.7,3061.4,1.66548621]
[1763330944209,0.92168278,3061.7,3060.5,0.22867231]
[1763330944410,0.92168278,3061.7,3060.2,0.4692]
[1763330944577,0.92168278,3061.7,3060.1,0.1914]
[1763330944777,0.92168278,3061.7,3060.2,0.4692]
[1763330945111,0.92168278,3061.7,3060.1,0.1914]
[1763330945314,1.475,3061.6,3060.2,0.4692]
[1763330945481,1.475,3061.6,3060.1,0.1914]
[1763330945482,2.39668278,3061.6,3060.1,0.1914]
[1763330945814,0.92168278,3061.6,3060.1,0.6606]
[1763330946180,1.475,3061.5,3060.2,0.4692]
[1763330946479,1.475,3061.4,3060.2,0.4692]
[1763330946679,0.70411662,3061.5,3060.2,0.4692]
[1763330946906,0.70411662,3061.5,3060.2,1.23729984]
[1763330946907,1.476,3061.3,3060.2,1.23729984]
[1763330947217,2.18011662,3061.3,3060.2,0.4692]
[1763330947548,2.18011662,3061.3,3060.3,0.4692]
[1763330948581,1.476,3061.2,3060.3,0.4692]
[1763330948823,0.70411662,3061.3,3061.2,0.1914]
[1763330949006,2.18011662,3061.3,3061.2,0.1914]
[1763330949204,1.94544085,3061.3,3061.2,0.6606]
[1763330949512,1.71076508,3061.3,3061.2,0.6606]
[1763330949713,1.47608931,3061.3,3061.2,0.6606]
[1763330949916,1.47608931,3061.3,3061.2,1.1154]
[1763330950214,0.88459963,3061.2,3060.6,6.82899842]
[1763330950519,0.88459963,3061.2,3061.1,0.1914]
[1763330950684,0.88459963,3061.2,3061.1,0.6462]
[1763330951502,1.476,3061.2,3061.1,0.6462]
[1763330952135,1.476,3061.2,3061.1,1.1154]
[1763330952438,1.476,3061.2,3061.1,0.6462]
[1763330952645,0.4806,3061.2,3060.1,7.48959842]
[1763330952809,0.00946234,3061.9,3061.1,0.1914]
[1763330953007,0.00946234,3061.9,3061.1,0.6462]
[1763330953206,0.0942,3062.2,3061.2,0.4692]
[1763330953720,0.0977,3062.5,3061.2,0.4692]
[1763330954016,0.1011,3062.7,3061.4,6.82899842]
[1763330954348,2.86081645,3064.0,3062.9,0.1914]
[1763330954516,0.1908,3064.0,3062.9,0.1914]
[1763330954709,0.1908,3064.0,3063.0,0.4692]
[1763330955075,2.39301645,3064.7,3063.0,7.29819842]
[1763330955215,0.088,3064.7,3063.0,7.29819842]
[1763330955419,1.841,3064.6,3063.1,0.4692]
[1763330955801,0.69193307,3064.5,3063.1,0.4692]
[1763330957358,1.82567387,3064.5,3063.1,0.4692]
[1763330957559,0.365,3064.4,3062.9,0.1914]
[1763330957760,1.05693307,3064.4,3062.9,0.1914]
[1763330957926,1.4987408,3064.3,3062.9,0.1914]
[1763330958127,2.16793307,3064.2,3063.0,0.4916]
[1763330958374,0.69193307,3064.1,3063.0,0.4916]
[1763330958724,1.476,3064.0,3063.0,0.4916]
[1763330958938,0.69193307,3063.9,3063.0,0.4916]
[1763330959129,1.476,3063.9,3063.0,0.4916]
[1763330961175,0.088,3064.7,3063.8,0.4827]
[1763330961334,0.1908,3065.0,3063.8,6.82899842]
[1763330961335,0.002,3064.0,3063.8,6.82899842]
[1763330961543,0.002,3064.0,3063.9,0.6456]
[1763330961761,0.002,3064.0,3063.9,1.1373]
[1763330962345,0.002,3064.0,3063.9,1.542804]
[1763330962871,0.002,3064.4,3064.0,0.405504]
[1763330963176,0.002,3064.4,3063.9,3.10822104]
[1763330963177,0.002,3064.4,3064.3,7.32069842]
[1763330963668,0.002,3064.4,3064.3,7.78419842]
[1763330964473,1.476,3064.6,3064.3,7.78419842]
[1763330964647,1.476,3064.6,3064.5,0.4917]
[1763330965053,1.476,3064.6,3064.5,0.9552]
[1763330965455,1.476,3064.6,3064.5,0.4917]
[1763330965763,1.476,3064.6,3064.1,0.4635]
[1763330966156,1.476,3064.6,3064.5,0.4917]
[1763330966576,1.476,3064.6,3064.5,0.9552]
[1763330967185,0.002,3065.4,3064.5,0.9552]
[1763330967387,0.002,3065.4,3063.9,0.1821]
[1763330967388,0.002,3065.4,3065.3,0.6738]
[1763330967588,1.477,3065.4,3065.3,0.6738]
[1763330967776,1.477,3065.4,3065.3,1.1373]
[1763330968286,1.477,3065.4,3065.0,0.1821]
[1763330968590,1.8531,3065.4,3064.5,0.1821]
[1763330968891,1.477,3065.4,3064.5,0.6456]
[1763330969198,0.002,3065.4,3064.5,0.1821]
[1763330969394,1.475,3065.3,3064.2,0.6456]
[1763330969594,0.69210867,3065.2,3064.2,0.6456]
[1763330970794,0.002,3065.4,3065.1,0.6738]
[1763330970959,1.475,3065.3,3065.1,0.6738]
[1763330971295,1.475,3065.3,3064.3,0.4635]
[1763330971296,0.0038,3065.2,3064.3,0.4635]
[1763330971492,0.0038,3065.2,3064.2,0.1821]
[1763330971670,0.0038,3065.2,3063.9,0.1821]
[1763330971671,1.06823729,3065.2,3063.9,0.1821]
[1763330971877,1.01823729,3065.2,3063.9,0.1821]
[1763330972191,0.69213729,3065.2,3063.9,0.1821]
[1763330972495,0.69213729,3065.2,3063.9,0.6456]
[1763330972694,0.3683,3064.0,3063.2,0.1821]
[1763330973191,1.475,3063.9,3063.2,0.6456]
[1763330973393,1.475,3063.9,3063.2,0.1821]
[1763330973690,0.1908,3065.0,3063.2,0.1821]
[1763330973992,0.1908,3065.0,3063.3,0.4635]
[1763330973993,1.7942,3064.9,3063.3,0.4635]
[1763330974194,1.01149875,3064.8,3063.3,0.4635]
[1763330974693,0.3192,3064.7,3063.3,0.4635]
[1763330975659,0.69229875,3064.8,3063.4,7.23450242]
[1763330975861,0.1908,3065.0,3063.4,8.02251266]
[1763330975862,1.475,3064.7,3063.4,8.02251266]
[1763330976060,1.475,3064.7,3063.5,0.4635]
[1763330978780,1.475,3064.7,3063.2,0.1821]
[1763330978781,1.01497213,3064.6,3063.2,0.1821]
[1763330979303,1.7942,3064.5,3063.2,0.6456]
[1763330979503,0.69577213,3064.4,3063.2,0.6456]
[1763330979804,0.69577213,3064.4,3063.5,0.001]
[1763330979805,1.01497213,3064.4,3063.5,0.001]
[1763330979973,0.3192,3064.3,3063.5,0.001]
[1763330980161,0.0519,3063.6,3063.1,0.001]
[1763330980585,0.3165,3063.2,3063.1,0.001]
[1763330981213,0.3197,3063.2,3062.8,0.001]
[1763330981441,0.1769,3062.9,3062.8,0.001]
[1763330981647,0.405504,3062.8,3061.1,1.80559591]
[1763330981944,0.405504,3062.6,3060.6,0.1821]
[1763330982237,1.5392448,3062.6,3060.6,0.1821]
[1763330982400,1.1337408,3062.5,3060.6,0.1821]
[1763330982604,0.69577213,3062.5,3060.6,0.1821]
[1763330982831,2.30501645,3062.2,3060.3,0.1821]
[1763330983004,2.30501645,3062.2,3060.1,0.1821]
[1763330983205,1.1337408,3062.1,3060.1,0.1821]
[1763330983406,8.36301293,3062.1,3060.1,0.1821]
[1763330983654,0.69577213,3062.0,3060.2,0.4635]
[1763330983804,1.1337408,3061.9,3060.1,0.1821]
[1763330984123,0.0684,3061.8,3060.1,0.1821]
[1763330984317,1.1337408,3061.7,3060.1,0.1821]
[1763330984520,0.405504,3061.6,3059.9,1.61254673]
[1763330984729,0.405504,3061.6,3059.5,0.1821]
[1763330984730,1.2077408,3061.5,3059.6,1.69386715]
[1763330984929,1.475,3061.4,3059.6,1.69386715]
[1763330985152,0.76977213,3061.3,3059.6,2.15736715]
[1763330985335,1.1337408,3061.2,3059.6,2.15736715]
[1763330985535,0.074,3061.1,3059.6,2.15736715]
[1763330985724,1.1337408,3061.0,3059.6,2.15736715]
[1763330986045,8.36301293,3061.0,3059.6,2.15736715]
[1763330986243,7.6672408,3061.0,3059.6,2.15736715]
[1763330986622,6.5335,3061.0,3059.6,2.15736715]
[1763330986819,1.2077408,3060.9,3059.6,2.15736715]
[1763330987132,8.43495042,3060.9,3059.6,2.15736715]
[1763330987333,7.7412408,3060.9,3059.6,2.15736715]
[1763330987537,0.074,3060.8,3059.6,2.15736715]
[1763330987707,6.6075,3060.8,3059.6,2.15736715]
[1763330988747,6.5335,3060.8,3059.8,1.66866205]
[1763330988909,1.476,3060.7,3059.8,1.66866205]
[1763330989111,1.54796801,3060.7,3059.8,1.66866205]
[1763330990912,0.074,3060.6,3059.6,1.69386715]
[1763330991151,6.5335,3060.6,3059.6,2.15736715]
[1763330991724,1.1337408,3060.5,3059.8,1.66866205]
[1763330992028,7.6672408,3060.5,3059.6,1.69386715]
[1763330993555,7.6672408,3060.5,3059.6,2.16286715]
[1763330994055,7.6672408,3060.5,3059.6,1.69386715]
[1763330994265,0.07196801,3060.4,3059.8,1.66866205]
[1763330994444,1.54796801,3060.4,3059.8,1.66866205]
[1763330994641,1.54796801,3060.4,3059.9,1.61254673]
[1763330995854,1.54796801,3060.4,3059.6,1.69386715]
[1763330996562,8.15546801,3060.4,3059.4,1.68263156]
[1763330996760,8.08146801,3060.4,3059.4,1.68263156]
[1763330996922,8.08146801,3060.4,3059.6,1.69386715]
[1763330997740,8.08146801,3060.4,3059.7,1.66523146]
[1763330997935,8.08146801,3060.4,3059.3,0.1887]
[1763330997936,8.08146801,3060.4,3059.4,1.68263156]
[1763330998160,8.08146801,3060.4,3059.8,1.66866205]
[1763331000760,8.08146801,3060.4,3059.6,2.16286715]
[1763331001258,8.08146801,3060.4,3059.6,1.69386715]
[1763331001642,0.074,3060.3,3059.6,1.69386715]
[1763331001963,6.5335,3060.3,3059.6,1.69386715]
[1763331002665,1.87315337,3060.2,3059.7,0.074]
[1763331002965,1.87315337,3060.2,3059.6,1.69386715]
[1763331002966,0.072,3059.8,3059.5,0.001]
[1763331003266,5.00519138,3060.2,3057.2,0.1887]
[1763331003267,0.05,3059.6,3057.2,0.1887]
[1763331003467,0.69071257,3059.9,3057.2,0.1887]
[1763331003780,6.5393,3059.6,3058.0,6.82899842]
[1763331003997,6.5393,3059.6,3058.1,1.81664064]